[Event "7th Iberoamerican-ch 2019"]
[Site "Linares"]
[Date "2019.08.16"]
[Round "7.20"]
[White "Garcia, Jhoel"]
[Black "Gines Esteo, Pedro Antonio"]
[Result "0-1"]
[ECO "B11"]
[WhiteElo "2290"]
[BlackElo "2417"]
[Annotator "ChessBase"]
[PlyCount "144"]
[EventDate "2019.08.10"]
[EventType "swiss"]
[EventCountry "ESP"]
[SourceTitle "playchess.com"]
[Source "ChessBase"]
[SourceQuality "1"]
[TimeControl "5400+30"]

1. e4 {[%emt 0:02:24]} c6 {[%emt 0:01:55]} 2. Nf3 {[%emt 0:01:11]} d5 {[%emt 0:00:06]} 3. Nc3 {[%emt 0:00:14]} Bg4 {[%emt 0:00:11]} 4. h3 {[%emt 0:01:56]} Bxf3 {[%emt 0:00:06]} 5. Qxf3 {[%emt 0:00:07]} e6 {[%emt 0:00:03]} 6. d4 {[%emt 0:04:08]} dxe4 {[%emt 0:00:12]} 7. Qxe4 {[%emt 0:00:23]} Nf6 {[%emt 0:00:06]} 8. Qh4 {[%emt 0:13:08]} Nbd7 {[%emt 0:00:12]} 9. Qg3 {[%emt 0:03:42]} Nb6 {[%emt 0:04:31]} 10. Be3 {[%emt 0:09:03]} Qd6 {[%emt 0:05:18]} 11. Qxd6 {[%emt 0:07:03]} Bxd6 {[%emt 0:00:02]} 12. O-O-O {[%emt 0:01:03]} Bb4 {[%emt 0:10:36]} 13. Bd2 {[%emt 0:13:47]} O-O-O {[%emt 0:04:55]} 14. a3 {[%emt 0:00:36]} Be7 {[%emt 0:15:43]} 15. Be3 {[%emt 0:05:35]} h5 {[%emt 0:03:36]} 16. Bd3 {[%emt 0:07:17]} h4 {[%emt 0:04:19]} 17. Ne2 {[%emt 0:00:29]} Nfd5 {[%emt 0:06:41]} 18. Bd2 {[%emt 0:00:25]} Rh5 {[%emt 0:01:59]} 19. c4 {[%emt 0:01:45]} Nc7 {[%emt 0:06:06]} 20. Kc2 {[%emt 0:00:37]} Bf6 {[%emt 0:03:37]} 21. Be3 {[%emt 0:02:14]} Bg5 {[%emt 0:04:56]} 22. f4 {[%emt 0:07:10]} Bf6 {[%emt 0:01:49]} 23. Rhf1 {[%emt 0:00:32]} g6 {[%emt 0:00:58]} 24. b4 {[%emt 0:04:46]} Kb8 {[%emt 0:02:30]} 25. Nc3 {[%emt 0:03:18]} Rhh8 {[%emt 0:01:49]} 26. Be2 {[%emt 0:00:30]} Bg7 {[%emt 0:02:11]} 27. Ne4 {[%emt 0:00:08]} Nc8 {[%emt 0:00:16]} 28. a4 {[%emt 0:04:07]} Ne7 {[%emt 0:05:13]} 29. Bf2 {[%emt 0:03:26]} Nf5 {[%emt 0:01:00]} 30. Kc3 {[%emt 0:01:26]} b5 {[%emt 0:02:38]} 31. Bg4 {[%emt 0:01:43]} bxc4 {[%emt 0:06:11]} 32. Kxc4 {[%emt 0:00:19]} Nd5 {[%emt 0:03:22]} 33. Bxf5 {[%emt 0:00:27]} gxf5 {[%emt 0:00:12]} 34. Nc5 {[%emt 0:00:52]} Nxf4 {[%emt 0:01:28]} 35. Bg1 {[%emt 0:00:47]} Nd5 {[%emt 0:00:34]} 36. b5 {[%emt 0:00:35]} cxb5+ {[%emt 0:01:46]} 37. axb5 {[%emt 0:00:04]} Nb6+ {[%emt 0:00:47]} 38. Kb4 {[%emt 0:00:58]} Nd5+ {[%emt 0:00:05]} 39. Kc4 {[%emt 0:00:08]} Bf8 {[%emt 0:00:55]} 40. Ra1 {[%emt 0:00:32]} Rg8 {[%emt 0:00:31]} 41. Ra2 {[%emt 0:00:24]} Rg3 {[%emt 0:00:27]} 42. Rf3 {[%emt 0:00:40]} Nb6+ {[%emt 0:00:18]} 43. Kb4 {[%emt 0:00:07]} Nd5+ {[%emt 0:00:01]} 44. Kc4 {[%emt 0:00:05]} Bd6 {[%emt 0:01:09]} 45. Bh2 {[%emt 0:00:33]} Rxf3 {[%emt 0:00:24]} 46. Bxd6+ {[%emt 0:00:07]} Rxd6 {[%emt 0:00:06]} 47. gxf3 {[%emt 0:00:08]} Nb6+ {[%emt 0:00:47]} 48. Kc3 {[%emt 0:00:12]} Nd5+ {[%emt 0:00:01]} 49. Kc4 {[%emt 0:00:05]} Rd8 {[%emt 0:01:05]} 50. Ra1 {[%emt 0:00:59]} Nb6+ {[%emt 0:00:32]} 51. Kc3 {[%emt 0:00:12]} Nd5+ {[%emt 0:00:02]} 52. Kc4 {[%emt 0:00:05]} Rg8 {[%emt 0:00:49]} 53. Nd7+ {[%emt 0:00:15]} Kb7 {[%emt 0:00:34]} 54. Nc5+ {[%emt 0:01:28]} Ka8 {[%emt 0:00:24]} 55. Nd7 {[%emt 0:00:14]} Rc8+ {[%emt 0:00:47]} 56. Nc5 {[%emt 0:00:11]} Nb6+ {[%emt 0:00:32]} 57. Kb4 {[%emt 0:00:58]} Rd8 {[%emt 0:00:20]} 58. Nb3 {[%emt 0:00:32]} Nd5+ {[%emt 0:00:43]} 59. Kc4 {[%emt 0:00:22]} f4 {[%emt 0:00:22]} 60. Rg1 {[%emt 0:00:45]} Ne3+ {[%emt 0:00:25]} 61. Kb4 {[%emt 0:01:23]} Nf5 {[%emt 0:00:41]} 62. Rg4 {[%emt 0:00:50]} Nxd4 {[%emt 0:00:27]} 63. Nxd4 {[%emt 0:01:27]} Rxd4+ {[%emt 0:00:02]} 64. Kc5 {[%emt 0:00:07]} e5 {[%emt 0:00:53]} 65. Rg7 {[%emt 0:00:22]} Rd3 {[%emt 0:00:38]} 66. Rxf7 {[%emt 0:00:39]} Rxf3 {[%emt 0:00:26]} 67. Kc6 {[%emt 0:00:52]} Rc3+ {[%emt 0:00:05]} 68. Kd6 {[%emt 0:00:11]} Rxh3 {[%emt 0:01:01]} 69. Kxe5 {[%emt 0:00:50]} Rb3 {[%emt 0:00:07]} 70. Rxf4 {[%emt 0:00:24]} Rxb5+ {[%emt 0:00:06]} 71. Kd6 {[%emt 0:00:04]} Rh5 {[%emt 0:00:37]} 72. Kc6 {[%emt 0:00:57]} Rh8 {[%emt 0:00:10]} 0-1

[Event "7th Iberoamerican-ch 2019"]
[Site "Linares"]
[Date "2019.08.16"]
[Round "7.21"]
[White "Aizpurua, Patrick"]
[Black "Lopez Mulet, Inigo"]
[Result "1-0"]
[ECO "A40"]
[WhiteElo "2261"]
[BlackElo "2397"]
[Annotator "NA"]
[PlyCount "119"]
[EventDate "2019.08.10"]
[EventType "swiss"]
[EventCountry "ESP"]
[SourceTitle "playchess.com"]
[Source "ChessBase"]
[SourceQuality "1"]
[TimeControl "5400+30"]

1. d4 {[%emt 0:00:00]} e6 {[%emt 0:00:07]} 2. Nf3 {[%emt 0:00:00]} c5 {[%emt 0:02:21]} 3. g3 {[%emt 0:01:03]} Nf6 {[%emt 0:01:58]} 4. Bg2 {[%emt 0:00:06]} cxd4 {[%emt 0:00:30]} 5. Nxd4 {[%emt 0:00:08]} d5 {[%emt 0:00:05]} 6. O-O {[%emt 0:00:22]} e5 {[%emt 0:03:42]} 7. Nb3 {[%emt 0:07:03]} h6 {[%emt 0:06:22]} 8. c4 {[%emt 0:01:19]} d4 {[%emt 0:18:15]} 9. e3 {[%emt 0:01:58]} d3 {[%emt 0:04:01]} 10. Nc3 {[%emt 0:00:25]} Bg4 {[%emt 0:01:41]} 11. f3 {[%emt 0:07:45]} Be6 {[%emt 0:01:11]} 12. f4 {[%emt 0:00:57]} Nc6 {[%emt 0:01:04]} 13. Bxc6+ {[%emt 0:00:37]} bxc6 {[%emt 0:00:08]} 14. fxe5 {[%emt 0:00:04]} Bg4 {[%emt 0:16:58]} 15. Qd2 {[%emt 0:00:09]} Nh7 {[%emt 0:07:05]} 16. Ne4 {[%emt 0:20:29]} Be2 {[%emt 0:11:01]} 17. Rf2 {[%emt 0:00:45]} Qb8 {[%emt 0:01:03]} 18. Qc3 {[%emt 0:22:25]} Bb4 {[%emt 0:04:17]} 19. Nd6+ {[%emt 0:01:04]} Qxd6 {[%emt 0:09:06]} 20. exd6 {[%emt 0:00:12]} Bxc3 {[%emt 0:00:03]} 21. bxc3 {[%emt 0:00:08]} Ng5 {[%emt 0:00:05]} 22. Kg2 {[%emt 0:02:49]} Ne4 {[%emt 0:00:45]} 23. d7+ {[%emt 0:00:58]} Kxd7 {[%emt 0:03:32]} 24. Rxf7+ {[%emt 0:00:06]} Ke8 {[%emt 0:03:23]} 25. Rf4 {[%emt 0:00:53]} Nxc3 {[%emt 0:01:07]} 26. Bb2 {[%emt 0:00:09]} Nd1 {[%emt 0:00:21]} 27. Bxg7 {[%emt 0:00:13]} Nxe3+ {[%emt 0:02:07]} 28. Kf2 {[%emt 0:00:13]} Rg8 {[%emt 0:00:05]} 29. Kxe3 {[%emt 0:04:33]} Rxg7 {[%emt 0:00:03]} 30. Re4+ {[%emt 0:00:05]} Kf7 {[%emt 0:01:06]} 31. Nc1 {[%emt 0:03:06]} Bh5 {[%emt 0:01:12]} 32. Nxd3 {[%emt 0:00:14]} Kg8 {[%emt 0:00:32]} 33. Nf4 {[%emt 0:00:18]} Bf7 {[%emt 0:00:19]} 34. Rb1 {[%emt 0:00:07]} Rd8 {[%emt 0:00:45]} 35. Ne6 {[%emt 0:03:52]} Bxe6 {[%emt 0:00:04]} 36. Rxe6 {[%emt 0:00:04]} c5 {[%emt 0:00:07]} 37. Re5 {[%emt 0:01:37]} Rgd7 {[%emt 0:01:25]} 38. Rb2 {[%emt 0:00:47]} Rd1 {[%emt 0:00:30]} 39. Rxc5 {[%emt 0:00:46]} R8d7 {[%emt 0:00:23]} 40. Rc2 {[%emt 0:00:58]} Kg7 {[%emt 0:00:13]} 41. Ke2 {[%emt 0:01:22]} Rh1 {[%emt 0:00:06]} 42. Kf3 {[%emt 0:00:06]} Kg6 {[%emt 0:00:41]} 43. Kg2 {[%emt 0:01:13]} Rhd1 {[%emt 0:00:05]} 44. Re5 {[%emt 0:00:25]} R7d2+ {[%emt 0:01:28]} 45. Re2 {[%emt 0:00:05]} Rd6 {[%emt 0:00:29]} 46. Kh3 {[%emt 0:02:01]} Rc6 {[%emt 0:00:17]} 47. Re4 {[%emt 0:00:17]} Rc5 {[%emt 0:00:40]} 48. Re6+ {[%emt 0:03:18]} Kg5 {[%emt 0:00:07]} 49. Rce2 {[%emt 0:00:27]} Rc1 {[%emt 0:00:08]} 50. R2e5+ {[%emt 0:00:41]} Rxe5 {[%emt 0:00:04]} 51. Rxe5+ {[%emt 0:00:04]} Kf6 {[%emt 0:00:08]} 52. Rc5 {[%emt 0:00:10]} Rc2 {[%emt 0:00:11]} 53. a4 {[%emt 0:00:03]} Kg6 {[%emt 0:00:23]} 54. g4 {[%emt 0:00:15]} Kf6 {[%emt 0:00:32]} 55. Kg3 {[%emt 0:00:14]} Rc1 {[%emt 0:00:08]} 56. Kh4 {[%emt 0:00:08]} Kg7 {[%emt 0:00:32]} 57. Kh5 {[%emt 0:00:09]} Rc3 {[%emt 0:00:34]} 58. h4 {[%emt 0:00:06]} Rg3 {[%emt 0:00:19]} 59. Rc7+ {[%emt 0:00:07]} Kf6 {[%emt 0:00:06]} 60. Rxa7 {[%emt 0:00:25]} 1-0

[Event "7th Iberoamerican-ch 2019"]
[Site "Linares"]
[Date "2019.08.16"]
[Round "7.22"]
[White "Cori T., Deysi"]
[Black "Balbuena Fuentes, Mario"]
[Result "1-0"]
[ECO "A40"]
[WhiteElo "2400"]
[BlackElo "2268"]
[Annotator "ChessBase"]
[PlyCount "91"]
[EventDate "2019.08.10"]
[EventType "swiss"]
[EventCountry "ESP"]
[SourceTitle "playchess.com"]
[Source "ChessBase"]
[SourceQuality "1"]
[TimeControl "5400+30"]

1. d4 {[%emt 0:01:43]} e6 {[%emt 0:00:00]} 2. Nf3 {[%emt 0:01:07]} f5 {[%emt 0:00:30]} 3. Bf4 {[%emt 0:06:35]} Nf6 {[%emt 0:00:45]} 4. e3 {[%emt 0:01:01]} b6 {[%emt 0:00:56]} 5. Nbd2 {[%emt 0:03:59]} Bb7 {[%emt 0:01:02]} 6. c3 {[%emt 0:01:58]} Be7 {[%emt 0:06:24]} 7. h3 {[%emt 0:02:05]} O-O {[%emt 0:01:47]} 8. Qc2 {[%emt 0:00:46]} Ne4 {[%emt 0:03:42]} 9. Rg1 {[%emt 0:02:27]} c5 {[%emt 0:04:11]} 10. Bd3 {[%emt 0:01:45]} Nxd2 {[%emt 0:08:15]} 11. Nxd2 {[%emt 0:00:45]} Nc6 {[%emt 0:09:45]} 12. g4 {[%emt 0:03:09]} cxd4 {[%emt 0:01:17]} 13. exd4 {[%emt 0:01:56]} Rc8 {[%emt 0:00:15]} 14. Qd1 {[%emt 0:01:35]} Bf6 {[%emt 0:09:46]} 15. Bd6 {[%emt 0:02:14]} Be7 {[%emt 0:01:19]} 16. Bf4 {[%emt 0:00:39]} Bf6 {[%emt 0:02:45]} 17. Bd6 {[%emt 0:09:13]} Be7 {[%emt 0:00:22]} 18. Bh2 {[%emt 0:00:02]} f4 {[%emt 0:09:06]} 19. g5 {[%emt 0:00:06]} g6 {[%emt 0:02:36]} 20. Nf3 {[%emt 0:06:45]} Qe8 {[%emt 0:05:12]} 21. Kf1 {[%emt 0:04:38]} Bd6 {[%emt 0:01:58]} 22. h4 {[%emt 0:00:32]} Ne7 {[%emt 0:00:58]} 23. Rg4 {[%emt 0:09:10]} Rc7 {[%emt 0:07:30]} 24. Nd2 {[%emt 0:01:52]} Qa8 {[%emt 0:04:27]} 25. Kg1 {[%emt 0:01:14]} e5 {[%emt 0:06:02]} 26. Qe1 {[%emt 0:06:00]} exd4 {[%emt 0:03:31]} 27. Nc4 {[%emt 0:00:01]} Rxc4 {[%emt 0:03:52]} 28. Bxc4+ {[%emt 0:00:02]} Bd5 {[%emt 0:00:13]} 29. Qe2 {[%emt 0:07:16]} Bxc4 {[%emt 0:02:09]} 30. Qxc4+ {[%emt 0:00:02]} Qd5 {[%emt 0:00:06]} 31. Qxd5+ {[%emt 0:04:04]} Nxd5 {[%emt 0:00:01]} 32. Rd1 {[%emt 0:00:07]} Be5 {[%emt 0:00:31]} 33. cxd4 {[%emt 0:00:18]} Bd6 {[%emt 0:00:01]} 34. Kg2 {[%emt 0:02:54]} Rc8 {[%emt 0:01:38]} 35. Rd2 {[%emt 0:05:57]} Kf7 {[%emt 0:02:28]} 36. Kf3 {[%emt 0:01:13]} Ke6 {[%emt 0:00:06]} 37. Ke4 {[%emt 0:00:14]} b5 {[%emt 0:00:40]} 38. h5 {[%emt 0:01:55]} b4 {[%emt 0:01:20]} 39. hxg6 {[%emt 0:00:24]} hxg6 {[%emt 0:00:03]} 40. Rh4 {[%emt 0:00:25]} Rc1 {[%emt 0:01:23]} 41. Re2 {[%emt 0:00:22]} Rd1 {[%emt 0:00:56]} 42. Rh7 {[%emt 0:02:18]} Rh1 {[%emt 0:00:34]} 43. Rg7 {[%emt 0:06:24]} Bf8 {[%emt 0:00:27]} 44. Kf3+ {[%emt 0:00:15]} Kd6 {[%emt 0:00:34]} 45. Rxg6+ {[%emt 0:00:10]} Kc7 {[%emt 0:00:07]} 46. Bxf4+ {[%emt 0:00:12]} 1-0

[Event "7th Iberoamerican-ch 2019"]
[Site "Linares"]
[Date "2019.08.16"]
[Round "7.23"]
[White "Silva Rodriguez, Fernando"]
[Black "Valenzuela Gomez, Fernando"]
[Result "1/2-1/2"]
[ECO "B08"]
[WhiteElo "2253"]
[BlackElo "2388"]
[Annotator "NA"]
[PlyCount "52"]
[EventDate "2019.08.10"]
[EventType "swiss"]
[EventCountry "ESP"]
[SourceTitle "playchess.com"]
[Source "ChessBase"]
[SourceQuality "1"]
[TimeControl "5400+30"]

1. e4 {[%emt 0:00:00]} g6 {[%emt 0:01:43]} 2. d4 {[%emt 0:00:00]} Bg7 {[%emt 0:00:03]} 3. Nf3 {[%emt 0:00:00]} d6 {[%emt 0:00:08]} 4. Be2 {[%emt 0:00:00]} Nf6 {[%emt 0:00:19]} 5. Nc3 {[%emt 0:00:06]} O-O {[%emt 0:00:16]} 6. O-O {[%emt 0:00:07]} a6 {[%emt 0:02:04]} 7. Re1 {[%emt 0:00:22]} Nc6 {[%emt 0:00:41]} 8. d5 {[%emt 0:00:17]} Na7 {[%emt 0:01:45]} 9. h3 {[%emt 0:02:23]} Bd7 {[%emt 0:03:59]} 10. a4 {[%emt 0:08:48]} c5 {[%emt 0:00:49]} 11. e5 {[%emt 0:13:37]} Ne8 {[%emt 0:03:09]} 12. Bf1 {[%emt 0:01:30]} b5 {[%emt 0:03:33]} 13. Bf4 {[%emt 0:05:00]} bxa4 {[%emt 0:16:11]} 14. Nxa4 {[%emt 0:05:30]} Rb8 {[%emt 0:01:27]} 15. b3 {[%emt 0:04:47]} Bb5 {[%emt 0:06:03]} 16. c4 {[%emt 0:04:09]} Bxa4 {[%emt 0:00:12]} 17. Rxa4 {[%emt 0:00:08]} Nc7 {[%emt 0:01:10]} 18. Bd3 {[%emt 0:09:25]} Nc8 {[%emt 0:01:13]} 19. Bc2 {[%emt 0:01:03]} Rb6 {[%emt 0:03:49]} 20. exd6 {[%emt 0:13:44]} exd6 {[%emt 0:01:04]} 21. Bd2 {[%emt 0:00:16]} Rb8 {[%emt 0:01:38]} 22. h4 {[%emt 0:04:33]} Nb6 {[%emt 0:01:16]} 23. Ra2 {[%emt 0:00:19]} Nd7 {[%emt 0:00:43]} 24. h5 {[%emt 0:01:49]} Ne5 {[%emt 0:02:40]} 25. Nxe5 {[%emt 0:01:46]} Bxe5 {[%emt 0:00:25]} 26. Qg4 {[%emt 0:01:28]} f5 {[%emt 0:02:35]} 1/2-1/2

[Event "7th Iberoamerican-ch 2019"]
[Site "Linares"]
[Date "2019.08.16"]
[Round "7.24"]
[White "Rodriguez Perez, Angel Mariano"]
[Black "Cruz Ravina, Francisco Javier"]
[Result "1/2-1/2"]
[ECO "C00"]
[WhiteElo "2223"]
[BlackElo "2366"]
[Annotator "NA"]
[PlyCount "50"]
[EventDate "2019.08.10"]
[EventType "swiss"]
[EventCountry "ESP"]
[SourceTitle "playchess.com"]
[Source "ChessBase"]
[SourceQuality "1"]
[TimeControl "5400+30"]

1. e4 {[%emt 0:00:00]} e6 {[%emt 0:00:02]} 2. d4 {[%emt 0:00:00]} d5 {[%emt 0:00:19]} 3. Bd3 {[%emt 0:00:00]} dxe4 {[%emt 0:04:25]} 4. Bxe4 {[%emt 0:00:00]} Nf6 {[%emt 0:00:17]} 5. Bf3 {[%emt 0:00:00]} Bd6 {[%emt 0:00:16]} 6. Ne2 {[%emt 0:00:04]} O-O {[%emt 0:00:28]} 7. O-O {[%emt 0:00:05]} c6 {[%emt 0:05:50]} 8. Nbc3 {[%emt 0:03:21]} Nbd7 {[%emt 0:02:26]} 9. Ng3 {[%emt 0:07:51]} Qc7 {[%emt 0:00:36]} 10. Kh1 {[%emt 0:00:03]} Rd8 {[%emt 0:05:40]} 11. Nce4 {[%emt 0:03:13]} Be7 {[%emt 0:04:39]} 12. Qe2 {[%emt 0:04:14]} b6 {[%emt 0:04:45]} 13. Rd1 {[%emt 0:02:38]} Bb7 {[%emt 0:00:15]} 14. Nc3 {[%emt 0:07:58]} Nf8 {[%emt 0:05:11]} 15. Nge4 {[%emt 0:03:05]} Rd7 {[%emt 0:06:14]} 16. Bg5 {[%emt 0:05:26]} Nxe4 {[%emt 0:02:38]} 17. Nxe4 {[%emt 0:00:17]} f5 {[%emt 0:01:04]} 18. Bxe7 {[%emt 0:04:07]} fxe4 {[%emt 0:00:07]} 19. Bxf8 {[%emt 0:00:42]} exf3 {[%emt 0:00:08]} 20. Qxe6+ {[%emt 0:00:04]} Kxf8 {[%emt 0:00:06]} 21. Rd3 {[%emt 0:02:03]} fxg2+ {[%emt 0:04:07]} 22. Kg1 {[%emt 0:00:05]} Rf7 {[%emt 0:00:43]} 23. Re3 {[%emt 0:01:16]} Qf4 {[%emt 0:09:15]} 24. Re2 {[%emt 0:00:48]} Ba6 {[%emt 0:04:16]} 25. c4 {[%emt 0:00:34]} Qf6 {[%emt 0:00:41]} 1/2-1/2

[Event "7th Iberoamerican-ch 2019"]
[Site "Linares"]
[Date "2019.08.16"]
[Round "7.25"]
[White "Sos Andreu, Eric"]
[Black "Almagro Mazariegos, Sebastian"]
[Result "1/2-1/2"]
[ECO "E68"]
[WhiteElo "2354"]
[BlackElo "2268"]
[Annotator "NA"]
[PlyCount "70"]
[EventDate "2019.08.10"]
[EventType "swiss"]
[EventCountry "ESP"]
[SourceTitle "playchess.com"]
[Source "ChessBase"]
[SourceQuality "1"]
[TimeControl "5400+30"]

1. Nf3 {[%emt 0:00:00]} Nf6 {[%emt 0:00:06]} 2. c4 {[%emt 0:00:00]} g6 {[%emt 0:00:07]} 3. d4 {[%emt 0:00:28]} Bg7 {[%emt 0:00:29]} 4. g3 {[%emt 0:00:04]} O-O {[%emt 0:00:08]} 5. Bg2 {[%emt 0:00:04]} d6 {[%emt 0:00:05]} 6. O-O {[%emt 0:00:06]} Nbd7 {[%emt 0:00:38]} 7. Nc3 {[%emt 0:00:09]} e5 {[%emt 0:00:14]} 8. e4 {[%emt 0:00:23]} a6 {[%emt 0:01:21]} 9. Re1 {[%emt 0:01:49]} Rb8 {[%emt 0:00:50]} 10. a4 {[%emt 0:02:06]} a5 {[%emt 0:00:33]} 11. b3 {[%emt 0:00:32]} Re8 {[%emt 0:04:24]} 12. h3 {[%emt 0:03:06]} c6 {[%emt 0:01:57]} 13. Be3 {[%emt 0:03:52]} exd4 {[%emt 0:09:07]} 14. Nxd4 {[%emt 0:04:27]} Qc7 {[%emt 0:06:49]} 15. f4 {[%emt 0:10:15]} Nc5 {[%emt 0:04:22]} 16. Bf2 {[%emt 0:00:50]} Bd7 {[%emt 0:06:54]} 17. g4 {[%emt 0:01:03]} h5 {[%emt 0:10:36]} 18. g5 {[%emt 0:05:12]} Nh7 {[%emt 0:00:17]} 19. Rb1 {[%emt 0:05:46]} Ne6 {[%emt 0:04:07]} 20. Nxe6 {[%emt 0:02:58]} Bxe6 {[%emt 0:01:19]} 21. Qd2 {[%emt 0:00:15]} Rbd8 {[%emt 0:02:14]} 22. Rbc1 {[%emt 0:02:23]} Nf8 {[%emt 0:11:51]} 23. Qc2 {[%emt 0:16:00]} Bc8 {[%emt 0:00:42]} 24. Ne2 {[%emt 0:02:13]} Ne6 {[%emt 0:01:27]} 25. Rcd1 {[%emt 0:03:35]} b6 {[%emt 0:00:57]} 26. Be3 {[%emt 0:02:05]} Nc5 {[%emt 0:00:49]} 27. Nd4 {[%emt 0:00:19]} Bd7 {[%emt 0:03:20]} 28. Bc1 {[%emt 0:04:28]} Qc8 {[%emt 0:03:53]} 29. Kh2 {[%emt 0:00:08]} Re7 {[%emt 0:00:44]} 30. Bb2 {[%emt 0:01:13]} Rde8 {[%emt 0:01:00]} 31. Re2 {[%emt 0:01:53]} Qc7 {[%emt 0:01:37]} 32. Rf1 {[%emt 0:01:49]} Kh7 {[%emt 0:06:32]} 33. Kh1 {[%emt 0:01:08]} Qc8 {[%emt 0:02:08]} 34. Kh2 {[%emt 0:03:02]} Qc7 {[%emt 0:00:15]} 35. Kh1 {[%emt 0:00:54]} Qc8 {[%emt 0:00:06]} 1/2-1/2

[Event "7th Iberoamerican-ch 2019"]
[Site "Linares"]
[Date "2019.08.16"]
[Round "7.26"]
[White "Gavarrete, Nahun"]
[Black "Martinez-Conde Hernandez, Carlos"]
[Result "1-0"]
[ECO "E94"]
[WhiteElo "2349"]
[BlackElo "2046"]
[Annotator "NA"]
[PlyCount "57"]
[EventDate "2019.08.10"]
[EventType "swiss"]
[EventCountry "ESP"]
[SourceTitle "playchess.com"]
[Source "ChessBase"]
[SourceQuality "1"]
[TimeControl "5400+30"]

1. d4 {[%emt 0:01:56]} Nf6 {[%emt 0:00:00]} 2. Nf3 {[%emt 0:00:08]} g6 {[%emt 0:00:05]} 3. c4 {[%emt 0:00:30]} Bg7 {[%emt 0:00:20]} 4. Nc3 {[%emt 0:00:09]} O-O {[%emt 0:00:20]} 5. e4 {[%emt 0:00:25]} d6 {[%emt 0:00:25]} 6. Be2 {[%emt 0:00:12]} e5 {[%emt 0:00:21]} 7. O-O {[%emt 0:01:42]} Na6 {[%emt 0:00:41]} 8. dxe5 {[%emt 0:17:55]} dxe5 {[%emt 0:01:24]} 9. Bg5 {[%emt 0:00:34]} Qe8 {[%emt 0:07:46]} 10. Qc2 {[%emt 0:04:08]} c6 {[%emt 0:02:09]} 11. h3 {[%emt 0:05:11]} Nh5 {[%emt 0:05:53]} 12. Rad1 {[%emt 0:07:15]} f6 {[%emt 0:06:59]} 13. Be3 {[%emt 0:00:32]} Nf4 {[%emt 0:00:15]} 14. Rfe1 {[%emt 0:00:48]} Nxe2+ {[%emt 0:02:41]} 15. Rxe2 {[%emt 0:00:08]} Qe7 {[%emt 0:21:54]} 16. Na4 {[%emt 0:04:41]} Be6 {[%emt 0:06:08]} 17. Red2 {[%emt 0:18:34]} c5 {[%emt 0:14:33]} 18. Nc3 {[%emt 0:05:35]} b6 {[%emt 0:01:27]} 19. Qa4 {[%emt 0:04:35]} Nb8 {[%emt 0:04:33]} 20. Nd5 {[%emt 0:02:41]} Qb7 {[%emt 0:00:59]} 21. Qb5 {[%emt 0:02:08]} Kh8 {[%emt 0:01:45]} 22. Bxc5 {[%emt 0:01:29]} Rc8 {[%emt 0:01:35]} 23. Nxb6 {[%emt 0:03:54]} axb6 {[%emt 0:01:02]} 24. Rd8+ {[%emt 0:00:11]} Bf8 {[%emt 0:05:03]} 25. Qe8 {[%emt 0:04:09]} Rxd8 {[%emt 0:00:52]} 26. Rxd8 {[%emt 0:00:11]} Nd7 {[%emt 0:00:16]} 27. Rxa8 {[%emt 0:03:35]} bxc5 {[%emt 0:00:15]} 28. Rd8 {[%emt 0:01:45]} Qc7 {[%emt 0:06:30]} 29. Rxd7 {[%emt 0:00:25]} 1-0

[Event "7th Iberoamerican-ch 2019"]
[Site "Linares"]
[Date "2019.08.16"]
[Round "7.27"]
[White "Blanco Acevedo, Cristobal Jose"]
[Black "Jimenez Bernal, Francisco"]
[Result "1-0"]
[ECO "E53"]
[WhiteElo "2342"]
[BlackElo "2222"]
[Annotator "NA"]
[PlyCount "83"]
[EventDate "2019.08.10"]
[EventType "swiss"]
[EventCountry "ESP"]
[SourceTitle "playchess.com"]
[Source "ChessBase"]
[SourceQuality "1"]
[TimeControl "5400+30"]

1. Nf3 {[%emt 0:00:00]} Nf6 {[%emt 0:00:00]} 2. d4 {[%emt 0:00:09]} e6 {[%emt 0:00:03]} 3. c4 {[%emt 0:00:27]} d5 {[%emt 0:00:15]} 4. Nc3 {[%emt 0:00:15]} Bb4 {[%emt 0:00:17]} 5. e3 {[%emt 0:00:27]} O-O {[%emt 0:00:44]} 6. Bd3 {[%emt 0:00:15]} c5 {[%emt 0:00:48]} 7. O-O {[%emt 0:00:13]} cxd4 {[%emt 0:01:57]} 8. exd4 {[%emt 0:00:06]} dxc4 {[%emt 0:00:08]} 9. Bxc4 {[%emt 0:00:04]} b6 {[%emt 0:00:21]} 10. Bg5 {[%emt 0:00:23]} Bxc3 {[%emt 0:01:43]} 11. bxc3 {[%emt 0:00:05]} Bb7 {[%emt 0:03:32]} 12. Ne5 {[%emt 0:01:09]} Nbd7 {[%emt 0:05:19]} 13. Qe2 {[%emt 0:02:16]} Qc7 {[%emt 0:02:24]} 14. Nxd7 {[%emt 0:00:22]} Nxd7 {[%emt 0:00:42]} 15. Rac1 {[%emt 0:00:52]} h6 {[%emt 0:08:45]} 16. Bh4 {[%emt 0:01:59]} Rac8 {[%emt 0:05:49]} 17. Bb5 {[%emt 0:02:32]} Bc6 {[%emt 0:04:31]} 18. Bd3 {[%emt 0:00:07]} Qd6 {[%emt 0:06:00]} 19. Rfd1 {[%emt 0:06:31]} Rfe8 {[%emt 0:05:12]} 20. c4 {[%emt 0:01:11]} e5 {[%emt 0:07:46]} 21. Bg3 {[%emt 0:04:51]} Qf6 {[%emt 0:02:53]} 22. d5 {[%emt 0:01:17]} Ba4 {[%emt 0:03:57]} 23. Re1 {[%emt 0:01:56]} Nc5 {[%emt 0:06:02]} 24. Be4 {[%emt 0:00:17]} g6 {[%emt 0:02:34]} 25. Rc3 {[%emt 0:02:03]} Bd7 {[%emt 0:03:51]} 26. Re3 {[%emt 0:05:24]} Qg7 {[%emt 0:07:35]} 27. Bc2 {[%emt 0:11:08]} f6 {[%emt 0:03:37]} 28. f4 {[%emt 0:00:59]} exf4 {[%emt 0:05:39]} 29. Bxf4 {[%emt 0:02:39]} Rxe3 {[%emt 0:00:11]} 30. Qxe3 {[%emt 0:00:18]} g5 {[%emt 0:02:44]} 31. Bd6 {[%emt 0:00:30]} Qf7 {[%emt 0:00:53]} 32. Qd4 {[%emt 0:02:21]} Re8 {[%emt 0:01:19]} 33. Rf1 {[%emt 0:00:06]} f5 {[%emt 0:02:55]} 34. Bxc5 {[%emt 0:00:18]} bxc5 {[%emt 0:00:05]} 35. Qxc5 {[%emt 0:00:04]} Re2 {[%emt 0:03:07]} 36. Bb3 {[%emt 0:00:32]} Qf6 {[%emt 0:01:45]} 37. d6 {[%emt 0:04:47]} Be6 {[%emt 0:01:23]} 38. Qxa7 {[%emt 0:01:29]} Qb2 {[%emt 0:00:50]} 39. Qa8+ {[%emt 0:01:06]} Kg7 {[%emt 0:00:03]} 40. Kh1 {[%emt 0:02:03]} Bf7 {[%emt 0:01:34]} 41. d7 {[%emt 0:01:06]} Rf2 {[%emt 0:00:33]} 42. Rg1 {[%emt 0:00:11]} 1-0